Cogmind - Beta 13 @@@ ROGUE MODE // 2024.03.20 @ 13:36:09 Player: youngster Result: Destroyed by D-53 Grenadier with Mini Grenade Launcher Performance ------------- Evolutions (0) 0 Regions Visited (2) 400 Robots Destroyed (42) 210 Value Destroyed (768) 768 Prototype IDs (0) 0 Alien Tech Used (0) 0 Bonus (-1404) -1404 TOTAL SCORE: -26 Bonus ------- Friendly Fire -1404 Cogmind --------- Core Integrity 0/250 Matter 87/300 Energy 274/290 System Corruption 0% Temperature Cool (0) Movement Treading (160) Location -10/Mines Parts ------- > --- POWER (1) -------- Improved Deuterium Engine > --- PROPULSION (2) --- Light Treads > --- UTILITY (2) ------ (None) > --- WEAPON (2) ------- Light Cannon Light Cannon > --- INVENTORY (5) ---- Compact Wheel Structural Scanner Targeting Computer Medium Laser Plasma Flamer Peak State ------------ > --- POWER ------------ Improved Deuterium Engine > --- PROPULSION ------- Light Treads Light Treads > --- UTILITY ---------- Large Storage Unit Seismic Detector > --- WEAPON ----------- Assault Rifle Assault Rifle > --- INVENTORY -------- Light Treads Light Treads Light Treads Light Treads Wheel Compact Wheel High-capacity Matter Pod Structural Scanner Targeting Computer Propulsion Shielding Medium Laser Light Cannon Light Cannon Grenade Launcher Grenade Launcher [Rating: 11] Favorites ----------- Power Light Ion Engine Engine Light Ion Engine Propulsion Light Treads Treads Light Treads Utility Large Storage Unit Device Seismic Detector Storage Large Storage Unit Protection Propulsion Shielding Weapon Assault Rifle Energy Gun Medium Laser Ballistic Gun Assault Rifle Ballistic Cannon Light Cannon Launcher Grenade Launcher Build | -11 -10 -10 ------- Run | Yrd Mat Min Slots Evolved . | . . . Power . | . . . Propulsion . | . . . Utility . | . . . Weapon . | . . . Parts Attached 48 | 7 24 17 Power 3 | 1 1 1 Engine 3 | 1 1 1 Core . | . . . Reactor . | . . . Propulsion 9 | 2 6 1 Treads 9 | 2 6 1 Leg . | . . . Wheel . | . . . Hover . | . . . Flight . | . . . Utility 11 | 2 6 3 Device 6 | 1 4 1 Storage 2 | 1 1 . Processor . | . . . Hackware . | . . . Protection 3 | . 1 2 Artifact . | . . . Weapon 25 | 2 11 12 Energy Gun 1 | . 1 . Energy Cannon . | . . . Ballistic Gun 7 | 2 . 5 Ballistic Cannon 7 | . 5 2 Launcher 10 | . 5 5 Special Weapon . | . . . Impact Weapon . | . . . Slashing Weapon . | . . . Piercing Weapon . | . . . Special Melee Weapon . | . . . Unidentified Prototypes . | . . . Parts Lost 8 | . 3 5 Power 1 | . 1 . Propulsion 2 | . . 2 Utility 2 | . 1 1 Weapon 3 | . 1 2 Highest Loss Streak 5 | . 1 5 To Critical Strikes . | . . . Average Slot Usage (%) 97 | . 96 99 Engine 13 | . 13 14 Treads 28 | . 28 28 Device 10 | . 10 11 Storage 14 | . 14 14 Protection 1 | . . 2 Energy Gun 2 | . 4 . Ballistic Gun 16 | . 11 24 Ballistic Cannon 6 | . 10 . Launcher 2 | . 2 3 Naked Turns . | . . . Heaviest Build 37 | 15 30 37 Greatest Support 40 | 40 40 40 Greatest Overweight (x) 1 | . . 1 Average Overweight (x) . | . . . Largest Inventory Capacity 15 | 8 15 15 Average Capacity 13 | 7 12 14 Most Carried 15 | 5 14 15 Average Carried 11 | 3 9 14 Final Capacity 15 | 8 15 5 Final Carried 14 | 5 14 5 Class Distribution -------------------- 100% | Mutant Dominant Class ---------------- Mutant | -10/Materials Mutant | -10/Mines Resources | -11 -10 -10 ----------- Run | Yrd Mat Min Matter Collected 1322 | 225 805 292 Remotely . | . . . Salvage Created 1122 | 44 792 286 Parts 90 | 8 58 24 Haulers Intercepted 1 | . 1 . Recyclers Shooed 2 | 1 . 1 Parts Field Recycled . | . . . Retrieved Matter . | . . . Parts Self-Destructed . | . . . Prevented . | . . . Kills | -11 -10 -10 ------- Run | Yrd Mat Min Combat Hostiles Destroyed 38 | . 19 19 Guns 11 | . 9 2 Cannons 2 | . 2 . AOE 25 | . 8 17 Classes Destroyed 9 | 1 7 1 Worker 1 | . 1 . Builder 3 | . 3 . Tunneler 3 | 2 . 1 Hauler 1 | . 1 . Recycler 3 | . 3 . Watcher 3 | . 3 . Swarmer 12 | . 6 6 Grunt 15 | . 13 2 Assembled 11 | . . 11 Best Kill Streak 11 | 2 6 11 Combat Bots Only 11 | . 3 11 Max Kills in Single Turn 3 | 1 3 3 Gunslinging . | . . . Exploded 3 | . 2 3 Melee . | . . . Uniques/NPCs Destroyed 1 | . . 1 YI-UF0 (-10/Mines) Combat | -11 -10 -10 -------- Run | Yrd Mat Min Hostile Shots Fired 152 | . 111 41 Missed 40 | . 27 13 Damage Taken 1646 | . 890 756 Core 252 | . 142 110 Absorbed by Shields . | . . . Redirected to Shielding 51 | . 3 48 Regen/Repaired (Parts) 341 | . 341 . Core Remaining (%) 100 | 100 . . Volleys Fired 112 | 5 74 33 Largest 2 | 2 2 2 Hottest 85 | 40 85 60 Shots Fired 197 | 10 135 52 Gun 139 | 10 93 36 Cannon 29 | . 29 . Launcher 29 | . 13 16 Special . | . . . Kinetic 149 | 10 103 36 Thermal 19 | . 19 . Explosive 29 | . 13 16 Electromagnetic . | . . . Robot Hit Streak 12 | 3 9 12 Robot Miss Streak 5 | 5 4 1 Penetration Max . | . . . Secondary Targets 1 | . 1 . Max Gunslinging Chain 1 | . 1 . Shots Hit Robots 118 | 4 82 32 Core Hits 79 | 2 41 36 Critical Kills . | . . . Critical Parts Destroyed 1 | . 1 . Critical Strikes 1 | . 1 . Destroy 1 | . 1 . Melee Attacks . | . . . Impact . | . . . Slashing . | . . . Piercing . | . . . Sneak Attacks . | . . . Combat Hostiles . | . . . Follow-up Attacks . | . . . Damage Inflicted 3364 | 49 1954 1361 Guns 1175 | 49 797 329 Cannons 343 | . 343 . Explosions 1794 | . 787 1007 Melee . | . . . Ramming 52 | . 27 25 Kinetic 1361 | 49 983 329 Thermal 157 | . 157 . Explosive 1794 | . 787 1007 Electromagnetic . | . . . Impact . | . . . Slashing . | . . . Piercing . | . . . Highest Corruption . | . . . Average Corruption . | . . . Corruption Purged . | . . . Corruption Blocked . | . . . Overload Shots . | . . . Overflow Damage 75 | . 45 30 Projectiles 7 | . 7 . Explosions 68 | . 38 30 Melee . | . . . Knockbacks 4 | . 4 . Impact . | . . . Kinetic 4 | . 4 . Secondary . | . . . Self-Inflicted Damage 201 | . 46 155 Shots 8 | . 2 6 Rammed 18 | . 12 6 Targets Rammed 20 | . 13 7 Kicked . | . . . Crushed 2 | . 1 1 Highest Temperature 298 | . 298 28 Average Temperature 65 | . 78 12 Received Heat Transfer 418 | . 303 115 Siege Activations . | . . . Robots Corrupted . | . . . Combat Hostiles . | . . . Parts Fried . | . . . Impact Corruptions . | . . . Robots Melted . | . . . Combat Hostiles . | . . . Parts Melted . | . . . Heat Transferred 481 | . 481 . Parts Sabotaged . | . . . Parts Stolen . | . . . Parts Stripped . | . . . Power Chain Reactions . | . . . Alert | -11 -10 -10 ------- Run | Yrd Mat Min Peak Influence 411 | 10 411 200 Initial 123 | . 6 123 Average 191 | 2 270 98 Maximum Alert Level 2 | . 2 1 Low Security (%) 48 | 100 14 90 Level 1 50 | . 82 9 Level 2 1 | . 2 . Level 3 . | . . . Level 4 . | . . . Level 5 . | . . . High Security . | . . . Max Security . | . . . Squads Dispatched 6 | . 6 . Investigation 2 | . 2 . Extermination . | . . . Reinforcement 4 | . 4 . Assault . | . . . Garrison . | . . . Intercept . | . . . Searches Triggered . | . . . Construction Impeded . | . . . Haulers Reinforced . | . . . Active Scanning Responses . | . . . Cargo Convoy Interrupts . | . . . Stealth | -11 -10 -10 --------- Run | Yrd Mat Min Distress Signals 3 | . 3 . Communications Jammed . | . . . Distress Signals . | . . . Times Spotted 56 | . 30 26 Peak Tracking Total 7 | . 7 7 Tactical Retreats 3 | . 2 1 Traps | -11 -10 -10 ------- Run | Yrd Mat Min Traps Triggered . | . . . Indirectly . | . . . Trap Hack Attempts . | . . . Triggered . | . . . Disarmed . | . . . Reprogrammed . | . . . Reused . | . . . Traps Extracted . | . . . Installed . | . . . Triggered . | . . . Machines | -11 -10 -10 ---------- Run | Yrd Mat Min Machines Disabled 3 | . 2 1 Max in Single Turn 1 | . 1 1 Machines Repaired . | . . . Machines Dismantled . | . . . Machines Sabotaged . | . . . Overloaded Fab Kills . | . . . Hacking | -11 -10 -10 --------- Run | Yrd Mat Min Machines Accessed 7 | . 7 . Terminals 4 | . 4 . Fabricators . | . . . Repair Stations 1 | . 1 . Recycling Units 2 | . 2 . Scanalyzers . | . . . Garrison Access . | . . . Total Hacks 21 | . 21 . Successful 15 | . 15 . Failed 5 | . 5 . Catastrophic . | . . . Database Lockouts 1 | . 1 . Manual 10 | . 10 . Terminals 9 | . 9 . Fabricators . | . . . Repair Stations 10 | . 10 . Recycling Units 2 | . 2 . Scanalyzers . | . . . Garrison Access . | . . . Terminal Hacks 2 | . 2 . Robot Schematic 1 | . 1 . Locate Traps 1 | . 1 . Fabricator Hacks . | . . . Repair Station Hacks 8 | . 8 . Scan Component 4 | . 4 . Repair 4 | . 4 . Recycling Unit Hacks . | . . . Scanalyzer . | . . . Garrison Access Hacks . | . . . Unauthorized Hacks 5 | . 5 . Terminals 3 | . 3 . Botnet 2 | . 2 . Operators 1 | . 1 . Fabricators . | . . . Repair Stations . | . . . Recycling Units 2 | . 2 . Tunnel 2 | . 2 . Scanalyzers . | . . . Garrison Access . | . . . Data Cores Recovered . | . . . Used . | . . . Hacking Detections 3 | . 3 . Full Trace Events . | . . . Feedback Events . | . . . Feedback Blocked . | . . . Robot Schematics Acquired 1 | . 1 . Robots Built . | . . . Authchips . | . . . Time . | . . . Total Robot Build Rating . | . . . Part Schematics Acquired . | . . . Parts Built . | . . . Authchips . | . . . Time . | . . . Total Part Build Rating . | . . . Parts Repaired 4 | . 4 . Time 104 | . 104 . Parts Recycled . | . . . Recycled Matter . | . . . Retrieved Matter . | . . . Retrieved Components . | . . . Parts Scanalyzed . | . . . Part Schematics Acquired . | . . . Parts Damaged . | . . . Bothacking | -11 -10 -10 ------------ Run | Yrd Mat Min Used RIF Installer . | . . . Robots Hacked . | . . . Non-combat . | . . . Combat . | . . . Robot Hacks Applied . | . . . Relay Couplers Released . | . . . Fabnet Peak Effective % . | . . . Robots Rewired . | . . . Allies Hacked . | . . . Hacks Repelled . | . . . Allies | -11 -10 -10 -------- Run | Yrd Mat Min Total Allies 1 | . . 1 Largest Group 1 | . . 1 Highest-Rated Group 31 | . . 31 Highest-Rated Ally 31 | . . 31 Total Orders . | . . . Ally Attacks 3 | . . 3 Total Damage 20 | . . 20 Kills . | . . . Allies Corrupted . | . . . Allies Melted . | . . . Intel | -11 -10 -10 ------- Run | Yrd Mat Min Robot Analysis Total . | . . . Derelict Logs Recovered 2 | . . 2 Drone Launches . | . . . Drone Recoveries . | . . . Exploration | -11 -10 -10 ------------- Run | Yrd Mat Min Turns Passed 2490 | 97 1399 994 Spaces Moved 1243 | 42 666 535 Core 2 | 2 . . Treads 1241 | 40 666 535 Legs . | . . . Wheels . | . . . Hover . | . . . Flight . | . . . Fastest Speed 50 | 50 160 160 Average Speed 159 | 154 160 160 Slowest Speed 240 | 160 160 240 Overloaded Moves . | . . . Propulsion Burnouts . | . . . Robots Hopped . | . . . Cave-ins Triggered . | . . . Exploration Rate (%) 58 | 4 90 80 Regions Visited 2 Branch Regions 1 Pre-discovered Areas 4 | . 2 2 Known Exits Taken . | . . . Unknown Exits Taken 2 | 1 1 . Scrap Searched 1 | . . 1 Spaces Dug 45 | . 5 40 Terrain Destroyed 136 | . 43 93 Melee . | . . . Projectile . | . . . AOE 136 | . 43 93 Terrain Rammed . | . . . Walls Destroyed . | . . . Machines Disabled . | . . . Actions | -11 -10 -10 --------- Run | Yrd Mat Min Total 1518 | 61 847 610 Wait 74 | 2 58 14 Move 1241 | 41 665 535 Hop . | . . . Pick Up 18 | 6 10 2 Fast Attach 8 | 6 2 . Attach 6 | 1 2 3 Detach . | . . . Swap 34 | . 20 14 Drop 5 | . 3 2 Fire 112 | 5 74 33 Melee . | . . . Ram . | . . . Kick . | . . . Crush 20 | . 13 7 Escape Stasis . | . . . Rewire . | . . . Trap . | . . . Miscellaneous . | . . . Route ------- -11/Scrapyard -10/Materials (discovered 5 exits: [*Mat x3] / [*Min x2]) -10/Mines (discovered 1 exit: [*Mat]) History --------- Turn | Location | Event 35 | -11/Scrapyard | Discovered new exit (range 16) 98 | -11/Scrapyard | Entered Materials 318 | -10/Materials | Build established: Mutant 569 | -10/Materials | Discovered new exit (range 16) 678 | -10/Materials | Discovered new exit (range 13) 736 | -10/Materials | Discovered new exit (range 6) 832 | -10/Materials | Repaired Grenade Launcher? 861 | -10/Materials | Core integrity fell below 50% 910 | -10/Materials | Repaired Lgt. Treads 937 | -10/Materials | Repaired Lgt. Treads 1024 | -10/Materials | Discovered new exit (range 12) 1152 | -10/Materials | Discovered new exit (range 10) 1305 | -10/Materials | Central database locked down 1433 | -10/Materials | Repaired Lgt. Treads 1497 | -10/Materials | Entered Mines 1500 | -10/Mines | YI-UF0 nonchalantly dropped a Grenade Launcher on the ground 1784 | -10/Mines | Murdered YI-UF0 1784 | -10/Mines | Destroyed YI-UF0 1919 | -10/Mines | Escorted by a lone wolf Derelict 1965 | -10/Mines | Learned Materials emergency access door positions 2171 | -10/Mines | Discovered new exit (range 11) 2438 | -10/Mines | Assembled infested the area 2463 | -10/Mines | A weapon hastily lodged in a ceiling crevice suddenly fell to the ground 2490 | -10/Mines | Core integrity fell below 20% 2491 | -10/Mines | Destroyed by D-53 Grenadier with Mini Grenade Launcher Last Messages --------------- 02463_ A Plasma Flamer has been hastily shoved under some rubble with a note attached: "One is never enough." 02466_ Acquired Plasma Flamer. 02471_ as-34013 destroyed. 02474_ The unstable cave ceiling collapses. 02474_ K-01 Serf collects debris. 02475_ The unstable cave ceiling collapses. 02475_ as-79422 destroyed. 02483_ The unstable cave ceiling collapses. 02483_ as-64674 destroyed. 02483_ Lgt. Treads destroyed. 02484_ The unstable cave ceiling collapses. 02485_ Grenade Launcher destroyed. 02487_ as-97485 destroyed. 02488_ K-01 Serf collects debris. 02489_ Propulsion Shielding destroyed. 02490_ The unstable cave ceiling collapses. 02490_ Dropped Lrg. Storage Unit. 02491_ Lgt. Treads destroyed. Map ----- +----------------------------------------------------+ | | | | | | | | | ?????????????????????????????????????????????????? | | ?????????????????????????????????????????????????? | | ##???????????????????????????????????????????????? | | ##??????????????????????????????????????????????? | | ##?????????????????????????????????????????????? | | ##????????????????????????????????????????????? | | ##????????????????? ?????????????????????? | | #???????????????? #???????????????????? | | #???????????????# #???????????????????? | | # ##??????????????# #???????????????????? | | # ##???????????### #???????????????????? | | # #??????????## #???????????????????? | | #???????#### ???????????????????? | | ##???????# dd????????????????????? | | # ##????????# ????????????????????? | | ## ############ # # # ##???????????????????? | | ?##### # ##??????????????????? | | ?????# # #??????????????????? | | ?????# # #??????????????????? | | ?????# """ """ #??# #??????????????????? | | ###### """ """ #??# !!= #??????????????????? | | """ """ #??# @= ##??????????????????? | | ###### #??## =[= #??????????????????? | | ?????# """ < #???### #??????????????????? | | ?????# """ #?????# ##??????????????????? | | ?????# """ #?????## # ######??????????????? | | ?????# #?????##=%k ##?????????????? | | #????# """ """ #????## #?????????????? | | #????# """ """ #??### #?????????????? | | #????# """ """ #?## ## ##?????????????? | | #????# ### ##?###??????????????? | | ??##?############ #???????????????????? | | ??# ##??????????# ##???????????????????? | | ??# #??????????# ##????????????????????? | | ??# #??????????# ##?????????????????????? | | ?## #??????????# ##??????????????????????? | | ## ##?????????# #???????????????????????? | | ##????????## ##??????????????????????? | | #?????????### ####???????????????????? | | #???????????## ##??????????????????? | | # #????????????# ####???????????????? | | ## #???????????## #####???????????? | | ### ##???????????# ##??????????? | | ##### #????????????# % ####???????? | | ##??# #???????????## ######### # ###????? | | ##??# #?????????### ##???????## ##???? | +----------------------------------------------------+ Best States ------------- Heat Dissipation 25 Energy Generation 16 Energy Capacity 290 Matter Stores 300 Matter Capacity 300 Sight Range 16 Terrain Scan Range 16 Terrain Scan Density 10 Propulsion Shielding 33 Evasion (%) 40 Recoil Reduction 2 Item Schematics ----------------- None Robot Schematics ------------------ M-13 Machinist | -10/Materials | Hacked Fabricated ------------ Nothing Alien Tech Used ----------------- None Achievements -------------- None Challenges ------------ None Game ------ Seed PiercingThermalAccelerator Manual? 0 Play Time 00:17:12 Cumulative 442.5 hours Start 2024.03.20 @ 13:20:13 End 2024.03.20 @ 13:36:09 Sessions 1 Manual Loads 0 Difficulty Rogue Special Mode None Game No. 204 Rogue 204 Adventurer 0 Explorer 0 Win Type - Total 11 Types 8/0/1/1/0/0/0/1/0 Lore% 86 Gallery% 92 Achievement% 71 Wizard Run 0 Options --------- Layout 2 ASCII 0 Keyboard 1 Movement Vi Keybinds 0 Fullscreen 2 Font 18/Cog Map View 50x49 Zoom Use 0% Tactical HUD 1 Map Filters NONE Filters NONE Steam 0 RUN: bcd57a70-d18e-4bca-b126-47ed4878dc6e